[Event "*** Titled Tuesday Blitz"]
[Site "Chess.com"]
[Date "2019.02.05"]
[Round "7"]
[White "DenisQ"]
[Black "Th3ChessViking"]
[Result "1-0"]
[WhiteElo "2661"]
[BlackElo "2467"]
[TimeControl "180+2"]
[EndTime "14:40:08 PST"]
[Termination "DenisQ won by resignation"]

1. Nf3 {[%clk 0:03:01.9]} 1... d5 {[%clk 0:03:00.6]} 2. c4 {[%clk 0:02:56.2]}
2... c6 {[%clk 0:02:53]} 3. cxd5 {[%clk 0:02:56.7]} 3... cxd5 {[%clk 0:02:53.5]}
4. d4 {[%clk 0:02:58.6]} 4... Nf6 {[%clk 0:02:46.3]} 5. Nc3 {[%clk 0:02:59.6]}
5... e6 {[%clk 0:02:46.5]} 6. Bf4 {[%clk 0:02:58.3]} 6... a6 {[%clk 0:02:47.9]}
7. e3 {[%clk 0:02:58.3]} 7... Nbd7 {[%clk 0:02:43.9]} 8. Bd3 {[%clk 0:02:58.2]}
8... b5 {[%clk 0:02:45.2]} 9. O-O {[%clk 0:02:58.4]} 9... Bb7 {[%clk 0:02:46]}
10. a4 {[%clk 0:02:59]} 10... b4 {[%clk 0:02:46.7]} 11. Nb1 {[%clk 0:03:00]}
11... Be7 {[%clk 0:02:44.6]} 12. h3 {[%clk 0:03:00.6]} 12... O-O {[%clk
0:02:45]} 13. Nbd2 {[%clk 0:03:01.1]} 13... Rc8 {[%clk 0:02:34.1]} 14. Qe2
{[%clk 0:03:00.2]} 14... Qb6 {[%clk 0:02:32.2]} 15. a5 {[%clk 0:02:59.8]} 15...
Qa7 {[%clk 0:02:32.1]} 16. Rfc1 {[%clk 0:02:56.5]} 16... Rxc1+ {[%clk
0:02:29.7]} 17. Rxc1 {[%clk 0:02:56.9]} 17... Rc8 {[%clk 0:02:31.6]} 18. Rxc8+
{[%clk 0:02:56.4]} 18... Bxc8 {[%clk 0:02:33.5]} 19. Nb3 {[%clk 0:02:55.9]}
19... Bb7 {[%clk 0:02:29.2]} 20. Qc2 {[%clk 0:02:53.3]} 20... Qa8 {[%clk
0:02:09.1]} 21. Ne5 {[%clk 0:02:47.5]} 21... Qc8 {[%clk 0:02:08.9]} 22. Qxc8+
{[%clk 0:02:25.4]} 22... Bxc8 {[%clk 0:02:10.8]} 23. Nc6 {[%clk 0:02:26.3]}
23... Bf8 {[%clk 0:02:08.8]} 24. Bc7 {[%clk 0:01:41.9]} 24... Ne8 {[%clk
0:01:54.4]} 25. Bb6 {[%clk 0:01:36.3]} 25... Nd6 {[%clk 0:01:54.1]} 26. Na7
{[%clk 0:01:17.7]} 26... Nxb6 {[%clk 0:00:21.5]} 27. axb6 {[%clk 0:01:17.2]}
27... Bb7 {[%clk 0:00:23.4]} 28. Na5 {[%clk 0:01:06.8]} 28... Be7 {[%clk
0:00:23.8]} 29. Nxb7 {[%clk 0:01:03.2]} 29... Nxb7 {[%clk 0:00:25.7]} 30. Bxa6
{[%clk 0:01:04.1]} 30... Na5 {[%clk 0:00:23]} 31. Nc8 {[%clk 0:00:54.7]} 31...
Bd8 {[%clk 0:00:20.5]} 32. Bb5 {[%clk 0:00:52.3]} 32... Nc4 {[%clk 0:00:19.9]}
33. b7 {[%clk 0:00:43.1]} 33... Bc7 {[%clk 0:00:19.4]} 34. Ne7+ {[%clk
0:00:31.2]} 34... Kf8 {[%clk 0:00:16.9]} 35. Nc6 {[%clk 0:00:32.2]} 35... Nd6
{[%clk 0:00:17.5]} 36. Ba6 {[%clk 0:00:32.3]} 36... Nc4 {[%clk 0:00:18.7]} 37.
b8=Q+ {[%clk 0:00:28.1]} 37... Bxb8 {[%clk 0:00:19.6]} 38. Nxb8 {[%clk 0:00:30]}
38... Nxb2 {[%clk 0:00:21.4]} 39. Nc6 {[%clk 0:00:30.4]} 39... b3 {[%clk
0:00:22]} 40. Na5 {[%clk 0:00:31.4]} 40... Nc4 {[%clk 0:00:22.6]} 41. Nxc4
{[%clk 0:00:29.9]} 41... dxc4 {[%clk 0:00:22.5]} 42. Bxc4 {[%clk 0:00:31.8]}
42... b2 {[%clk 0:00:24.1]} 43. Bd3 {[%clk 0:00:32.8]} 43... g6 {[%clk
0:00:25.7]} 44. Kf1 {[%clk 0:00:33.5]} 44... Ke7 {[%clk 0:00:27.6]} 45. Ke2
{[%clk 0:00:34.7]} 45... Kd6 {[%clk 0:00:29.5]} 46. Kd2 {[%clk 0:00:36]} 46...
Kc6 {[%clk 0:00:31.4]} 47. Kc3 {[%clk 0:00:37.1]} 1-0

[Event "*** Titled Tuesday Blitz"]
[Site "Chess.com"]
[Date "2019.02.05"]
[Round "7"]
[White "Babas"]
[Black "Feegus"]
[Result "0-1"]
[WhiteElo "2326"]
[BlackElo "2387"]
[TimeControl "180+2"]
[EndTime "14:40:14 PST"]
[Termination "Feegus won by checkmate"]

1. e4 {[%clk 0:03:01.9]} 1... e6 {[%clk 0:03:00.5]} 2. d4 {[%clk 0:03:02.2]}
2... d5 {[%clk 0:03:01.4]} 3. Nc3 {[%clk 0:03:01.5]} 3... Nf6 {[%clk 0:03:02.2]}
4. e5 {[%clk 0:03:02.2]} 4... Nfd7 {[%clk 0:03:03.5]} 5. f4 {[%clk 0:03:03.6]}
5... c5 {[%clk 0:03:05.1]} 6. Nf3 {[%clk 0:03:04.8]} 6... Nc6 {[%clk 0:03:06.8]}
7. Be3 {[%clk 0:03:05.6]} 7... cxd4 {[%clk 0:03:08.4]} 8. Nxd4 {[%clk
0:03:06.2]} 8... Bc5 {[%clk 0:03:08.8]} 9. Qd2 {[%clk 0:03:01.8]} 9... O-O
{[%clk 0:03:09.7]} 10. O-O-O {[%clk 0:03:01.2]} 10... a6 {[%clk 0:03:10.7]} 11.
Kb1 {[%clk 0:02:52]} 11... Nxd4 {[%clk 0:03:10.9]} 12. Bxd4 {[%clk 0:02:52.9]}
12... b5 {[%clk 0:03:12.8]} 13. h4 {[%clk 0:02:52.8]} 13... b4 {[%clk
0:03:13.7]} 14. Ne2 {[%clk 0:02:53.2]} 14... a5 {[%clk 0:03:12.6]} 15. Nc1
{[%clk 0:02:53.1]} 15... Ba6 {[%clk 0:03:12.5]} 16. h5 {[%clk 0:02:50.6]} 16...
Qc7 {[%clk 0:03:12.3]} 17. g4 {[%clk 0:02:47.4]} 17... Rfc8 {[%clk 0:03:12.6]}
18. Rh2 {[%clk 0:02:46.9]} 18... Bxf1 {[%clk 0:03:05]} 19. Rxf1 {[%clk
0:02:48.8]} 19... Nb6 {[%clk 0:03:06.4]} 20. Bxc5 {[%clk 0:01:47.9]} 20... Qxc5
{[%clk 0:03:06.7]} 21. f5 {[%clk 0:01:49.2]} 21... Nc4 {[%clk 0:03:07.5]} 22.
Qg5 {[%clk 0:01:49.5]} 22... Qd4 {[%clk 0:02:56.1]} 23. Nd3 {[%clk 0:01:46.1]}
23... h6 {[%clk 0:02:52.4]} 24. Qf4 {[%clk 0:01:22.7]} 24... Qxf4 {[%clk
0:02:27.6]} 25. Rxf4 {[%clk 0:01:24.6]} 25... Rc6 {[%clk 0:02:09.4]} 26. Rhf2
{[%clk 0:01:16.1]} 26... Rac8 {[%clk 0:02:08.3]} 27. fxe6 {[%clk 0:00:37.7]}
27... fxe6 {[%clk 0:02:08.7]} 28. Rf7 {[%clk 0:00:38.2]} 28... Ne3 {[%clk
0:01:59.6]} 29. Re7 {[%clk 0:00:35.4]} 29... Rf8 {[%clk 0:01:36.1]} 30. Rxf8+
{[%clk 0:00:25.6]} 30... Kxf8 {[%clk 0:01:36.6]} 31. Ra7 {[%clk 0:00:26.9]}
31... Rxc2 {[%clk 0:00:58]} 32. Rxa5 {[%clk 0:00:20.9]} 32... Rc4 {[%clk
0:00:58.9]} 33. Nc5 {[%clk 0:00:13.2]} 33... Rxg4 {[%clk 0:00:50.2]} 34. Ra8+
{[%clk 0:00:08.4]} 34... Kf7 {[%clk 0:00:44.7]} 35. Ra7+ {[%clk 0:00:09.1]}
35... Kg8 {[%clk 0:00:45.6]} 36. a4 {[%clk 0:00:06.4]} 36... Nc4 {[%clk
0:00:28.7]} 37. Nxe6 {[%clk 0:00:06.5]} 37... b3 {[%clk 0:00:29.8]} 38. Ra8+
{[%clk 0:00:02.2]} 38... Kf7 {[%clk 0:00:28.4]} 39. Nd8+ {[%clk 0:00:03.6]}
39... Ke7 {[%clk 0:00:24]} 40. Nc6+ {[%clk 0:00:04.8]} 40... Kd7 {[%clk
0:00:23]} 41. e6+ {[%clk 0:00:05.8]} 41... Kxc6 {[%clk 0:00:20.1]} 42. e7 {[%clk
0:00:06.6]} 42... Rg1# {[%clk 0:00:20]} 0-1

[Event "*** Titled Tuesday Blitz"]
[Site "Chess.com"]
[Date "2019.02.05"]
[Round "7"]
[White "SuperCheese"]
[Black "Didici"]
[Result "0-1"]
[WhiteElo "2574"]
[BlackElo "2580"]
[TimeControl "180+2"]
[EndTime "14:40:19 PST"]
[Termination "Didici won by resignation"]

1. d4 {[%clk 0:03:01.9]} 1... f5 {[%clk 0:02:57.1]} 2. Nc3 {[%clk 0:03:02.2]}
2... d5 {[%clk 0:02:56.9]} 3. Nf3 {[%clk 0:03:02.2]} 3... g6 {[%clk 0:02:55.5]}
4. Bf4 {[%clk 0:02:52.6]} 4... Bg7 {[%clk 0:02:56]} 5. h3 {[%clk 0:02:54.1]}
5... c6 {[%clk 0:02:54.1]} 6. e3 {[%clk 0:02:55.3]} 6... Nh6 {[%clk 0:02:54.6]}
7. Bd3 {[%clk 0:02:55.9]} 7... Nf7 {[%clk 0:02:56.1]} 8. O-O {[%clk 0:02:48.3]}
8... Nd7 {[%clk 0:02:57.5]} 9. Na4 {[%clk 0:02:35.8]} 9... e5 {[%clk 0:02:57.7]}
10. dxe5 {[%clk 0:02:35.2]} 10... Ndxe5 {[%clk 0:02:59.6]} 11. Nxe5 {[%clk
0:02:15.8]} 11... Nxe5 {[%clk 0:03:01.5]} 12. Rc1 {[%clk 0:02:05.3]} 12... Qe7
{[%clk 0:02:49.7]} 13. a3 {[%clk 0:01:59.6]} 13... b5 {[%clk 0:02:40.1]} 14. Nc3
{[%clk 0:01:59.4]} 14... O-O {[%clk 0:02:38.9]} 15. Bh2 {[%clk 0:01:57.4]} 15...
a5 {[%clk 0:02:38.5]} 16. Rb1 {[%clk 0:01:53.2]} 16... Bb7 {[%clk 0:02:31.1]}
17. Ne2 {[%clk 0:01:47.5]} 17... b4 {[%clk 0:02:25]} 18. a4 {[%clk 0:01:30.3]}
18... c5 {[%clk 0:02:22.7]} 19. Bb5 {[%clk 0:01:30.6]} 19... Rad8 {[%clk
0:02:15.5]} 20. b3 {[%clk 0:01:28.6]} 20... Kh8 {[%clk 0:01:52.4]} 21. Nf4
{[%clk 0:01:27.2]} 21... d4 {[%clk 0:01:44.3]} 22. Qe2 {[%clk 0:01:26.5]} 22...
g5 {[%clk 0:01:19.9]} 23. Nh5 {[%clk 0:01:23.4]} 23... dxe3 {[%clk 0:01:12]} 24.
Nxg7 {[%clk 0:01:19.6]} 24... Kxg7 {[%clk 0:01:09.7]} 25. fxe3 {[%clk
0:01:14.3]} 25... Ng6 {[%clk 0:01:01.9]} 26. Rbd1 {[%clk 0:01:07.6]} 26... Nh4
{[%clk 0:00:59]} 27. Rf2 {[%clk 0:00:37.1]} 27... Rxd1+ {[%clk 0:00:38.5]} 28.
Qxd1 {[%clk 0:00:39]} 28... Rd8 {[%clk 0:00:30.6]} 29. Qe1 {[%clk 0:00:22.2]}
29... Bxg2 {[%clk 0:00:27.3]} 30. Be2 {[%clk 0:00:18.5]} 30... Qxe3 {[%clk
0:00:25.2]} 31. Bg3 {[%clk 0:00:13.8]} 31... Qxg3 {[%clk 0:00:24.5]} 32. Bh5
{[%clk 0:00:13.3]} 32... Bf3+ {[%clk 0:00:21.6]} 33. Kf1 {[%clk 0:00:12]} 33...
Bxh5 {[%clk 0:00:22.5]} 34. Qe7+ {[%clk 0:00:11.5]} 34... Bf7 {[%clk 0:00:20.9]}
35. Qxd8 {[%clk 0:00:12.7]} 35... Qxh3+ {[%clk 0:00:21.7]} 36. Ke2 {[%clk
0:00:12.6]} 36... Qg4+ {[%clk 0:00:22.7]} 37. Ke1 {[%clk 0:00:12.2]} 37... f4
{[%clk 0:00:23.9]} 38. Qc7 {[%clk 0:00:05.9]} 38... Qf5 {[%clk 0:00:24.6]} 39.
Rd2 {[%clk 0:00:04.5]} 39... Nf3+ {[%clk 0:00:25]} 40. Ke2 {[%clk 0:00:05.1]}
40... Nxd2 {[%clk 0:00:26.9]} 41. Kxd2 {[%clk 0:00:07]} 41... f3 {[%clk
0:00:28]} 42. Kc1 {[%clk 0:00:08.2]} 42... f2 {[%clk 0:00:29.1]} 43. Kb2 {[%clk
0:00:10.1]} 43... f1=Q {[%clk 0:00:30.1]} 44. Qd6 {[%clk 0:00:09]} 44... Q1f2
{[%clk 0:00:30.4]} 0-1

[Event "*** Titled Tuesday Blitz"]
[Site "Chess.com"]
[Date "2019.02.05"]
[Round "7"]
[White "Eliwood44"]
[Black "ecwinslow"]
[Result "1-0"]
[WhiteElo "2130"]
[BlackElo "1978"]
[TimeControl "180+2"]
[EndTime "14:40:20 PST"]
[Termination "Eliwood44 won by resignation"]

1. d4 {[%clk 0:03:01.9]} 1... Nf6 {[%clk 0:02:54.5]} 2. Nf3 {[%clk 0:03:01.5]}
2... g6 {[%clk 0:02:54.2]} 3. Nc3 {[%clk 0:03:01]} 3... d6 {[%clk 0:02:54.9]} 4.
e4 {[%clk 0:03:01.4]} 4... Bg7 {[%clk 0:02:54.5]} 5. h3 {[%clk 0:03:02.8]} 5...
O-O {[%clk 0:02:54.3]} 6. Be3 {[%clk 0:03:03.2]} 6... c6 {[%clk 0:02:55.2]} 7.
a4 {[%clk 0:02:50.4]} 7... Qc7 {[%clk 0:02:53.8]} 8. Be2 {[%clk 0:02:33.4]} 8...
e5 {[%clk 0:02:48.4]} 9. O-O {[%clk 0:02:33.4]} 9... Nbd7 {[%clk 0:02:39.4]} 10.
Re1 {[%clk 0:02:12.2]} 10... Re8 {[%clk 0:02:34.5]} 11. Bf1 {[%clk 0:01:58.9]}
11... b6 {[%clk 0:02:11.8]} 12. d5 {[%clk 0:01:53.5]} 12... cxd5 {[%clk
0:02:01.6]} 13. exd5 {[%clk 0:01:43.7]} 13... a6 {[%clk 0:02:01.4]} 14. Ra3
{[%clk 0:01:38.8]} 14... Bb7 {[%clk 0:01:55.5]} 15. Qd2 {[%clk 0:01:38.1]} 15...
Rac8 {[%clk 0:01:29.2]} 16. Rd1 {[%clk 0:01:24.7]} 16... Nc5 {[%clk 0:01:22.9]}
17. Bh6 {[%clk 0:01:00.3]} 17... Bh8 {[%clk 0:00:59]} 18. Bg5 {[%clk 0:00:54]}
18... Nfe4 {[%clk 0:00:56]} 19. Qc1 {[%clk 0:00:54.6]} 19... Nxg5 {[%clk
0:00:55.7]} 20. Qxg5 {[%clk 0:00:55.2]} 20... Qe7 {[%clk 0:00:45.4]} 21. Qxe7
{[%clk 0:00:54]} 21... Rxe7 {[%clk 0:00:46]} 22. b4 {[%clk 0:00:53.9]} 22... Nd7
{[%clk 0:00:41]} 23. Ne4 {[%clk 0:00:54.3]} 23... Rxc2 {[%clk 0:00:34.7]} 24.
Nxd6 {[%clk 0:00:55.1]} 24... Ba8 {[%clk 0:00:30.7]} 25. Bxa6 {[%clk 0:00:46.9]}
25... h6 {[%clk 0:00:21.2]} 26. a5 {[%clk 0:00:29.6]} 26... bxa5 {[%clk
0:00:20.4]} 27. bxa5 {[%clk 0:00:27]} 27... e4 {[%clk 0:00:21.2]} 28. Ne1 {[%clk
0:00:26]} 28... Rc5 {[%clk 0:00:20.1]} 29. Bb7 {[%clk 0:00:24.6]} 29... Bxb7
{[%clk 0:00:17.8]} 30. Nxb7 {[%clk 0:00:26.5]} 30... Rb5 {[%clk 0:00:18.5]} 31.
Nd6 {[%clk 0:00:26.9]} 31... Rb8 {[%clk 0:00:18.3]} 32. a6 {[%clk 0:00:27.9]}
32... Nc5 {[%clk 0:00:19.3]} 33. Rc1 {[%clk 0:00:26.9]} 33... Nd3 {[%clk
0:00:19.2]} 34. Nxd3 {[%clk 0:00:27.1]} 34... exd3 {[%clk 0:00:19.8]} 35. Rxd3
{[%clk 0:00:28.3]} 35... Be5 {[%clk 0:00:20.1]} 36. Nc4 {[%clk 0:00:28.1]} 36...
Bf4 {[%clk 0:00:18.9]} 37. Rcd1 {[%clk 0:00:27.3]} 37... Ra7 {[%clk 0:00:18.5]}
38. Ra3 {[%clk 0:00:27.6]} 38... Rd8 {[%clk 0:00:14.2]} 39. g3 {[%clk
0:00:28.3]} 39... Bb8 {[%clk 0:00:14.2]} 40. Kg2 {[%clk 0:00:26.8]} 40... Kf8
{[%clk 0:00:15.7]} 41. f4 {[%clk 0:00:26.8]} 41... Ke7 {[%clk 0:00:16.8]} 42.
Ne5 {[%clk 0:00:26.8]} 42... Bxe5 {[%clk 0:00:15.5]} 43. fxe5 {[%clk 0:00:28.7]}
43... Rda8 {[%clk 0:00:14.3]} 44. Rda1 {[%clk 0:00:28.3]} 44... f6 {[%clk
0:00:15.5]} 45. exf6+ {[%clk 0:00:28.3]} 45... Kxf6 {[%clk 0:00:16.6]} 46. Kf3
{[%clk 0:00:25.8]} 46... Ke5 {[%clk 0:00:17.2]} 47. Ra5 {[%clk 0:00:26.1]} 47...
Rd8 {[%clk 0:00:17.6]} 48. Re1+ {[%clk 0:00:26]} 48... Kd6 {[%clk 0:00:17.1]}
49. Re6+ {[%clk 0:00:27.1]} 49... Kc7 {[%clk 0:00:17.7]} 50. Rxg6 {[%clk
0:00:27.2]} 1-0

[Event "*** Titled Tuesday Blitz"]
[Site "Chess.com"]
[Date "2019.02.05"]
[Round "7"]
[White "Revnov"]
[Black "metra93"]
[Result "0-1"]
[WhiteElo "2758"]
[BlackElo "2571"]
[TimeControl "180+2"]
[EndTime "14:40:21 PST"]
[Termination "metra93 won by resignation"]

1. e4 {[%clk 0:03:01.9]} 1... e6 {[%clk 0:02:56.9]} 2. d4 {[%clk 0:03:02]} 2...
d5 {[%clk 0:02:58.1]} 3. Nc3 {[%clk 0:03:03.5]} 3... Bb4 {[%clk 0:02:58.8]} 4.
e5 {[%clk 0:03:04.2]} 4... c5 {[%clk 0:03:00.1]} 5. a3 {[%clk 0:03:05.1]} 5...
Bxc3+ {[%clk 0:03:01.3]} 6. bxc3 {[%clk 0:03:07]} 6... Qc7 {[%clk 0:03:02.9]} 7.
Nf3 {[%clk 0:03:05.1]} 7... b6 {[%clk 0:03:03]} 8. a4 {[%clk 0:03:06.5]} 8...
Ne7 {[%clk 0:03:02.3]} 9. a5 {[%clk 0:03:07.1]} 9... Ba6 {[%clk 0:02:20.7]} 10.
Bxa6 {[%clk 0:02:46.4]} 10... Nxa6 {[%clk 0:02:20.9]} 11. axb6 {[%clk
0:02:46.9]} 11... axb6 {[%clk 0:02:18.9]} 12. Qd3 {[%clk 0:02:48.3]} 12... Qb7
{[%clk 0:02:12.3]} 13. O-O {[%clk 0:02:45.4]} 13... O-O {[%clk 0:02:06.6]} 14.
Ng5 {[%clk 0:02:44.6]} 14... Ng6 {[%clk 0:02:07.3]} 15. h4 {[%clk 0:02:19.5]}
15... Nb4 {[%clk 0:01:52]} 16. cxb4 {[%clk 0:02:18.7]} 16... Rxa1 {[%clk
0:01:52.8]} 17. h5 {[%clk 0:02:19.9]} 17... h6 {[%clk 0:01:53.5]} 18. Nxe6
{[%clk 0:01:45.7]} 18... fxe6 {[%clk 0:01:51.3]} 19. Qxg6 {[%clk 0:01:41.2]}
19... Qf7 {[%clk 0:01:51.5]} 20. bxc5 {[%clk 0:01:39.1]} 20... bxc5 {[%clk
0:01:52.5]} 21. dxc5 {[%clk 0:01:40.3]} 21... Rc8 {[%clk 0:01:41.5]} 22. Be3
{[%clk 0:01:36.7]} 22... Rxf1+ {[%clk 0:01:36.1]} 23. Kxf1 {[%clk 0:01:38.6]}
23... Qxg6 {[%clk 0:01:19.3]} 24. hxg6 {[%clk 0:01:40.5]} 24... h5 {[%clk
0:01:21.2]} 25. Ke2 {[%clk 0:01:35.9]} 25... Kf8 {[%clk 0:01:22.1]} 26. Kf3
{[%clk 0:01:23.8]} 26... Ke8 {[%clk 0:01:23.3]} 27. Kf4 {[%clk 0:01:20.5]} 27...
Kd7 {[%clk 0:01:19.5]} 28. Kg5 {[%clk 0:01:21.4]} 28... Rf8 {[%clk 0:01:15.4]}
29. f4 {[%clk 0:00:57.7]} 29... Rf5+ {[%clk 0:01:09.5]} 30. Kh4 {[%clk
0:00:58.6]} 30... d4 {[%clk 0:01:10.7]} 31. Bc1 {[%clk 0:00:40.6]} 31... Kc6
{[%clk 0:01:11.3]} 32. g3 {[%clk 0:00:42]} 32... Kd5 {[%clk 0:00:48.5]} 33. Ba3
{[%clk 0:00:39.7]} 33... Kc6 {[%clk 0:00:42.1]} 34. Bb4 {[%clk 0:00:39.6]} 34...
Rf8 {[%clk 0:00:38]} 35. Kxh5 {[%clk 0:00:39.3]} 35... Rh8+ {[%clk 0:00:38]} 36.
Kg5 {[%clk 0:00:38.4]} 36... Rh2 {[%clk 0:00:34.7]} 37. g4 {[%clk 0:00:31.7]}
37... Rg2 {[%clk 0:00:33.1]} 38. Kh4 {[%clk 0:00:24.8]} 38... Rxc2 {[%clk
0:00:29.6]} 39. f5 {[%clk 0:00:25.8]} 39... exf5 {[%clk 0:00:26]} 40. gxf5
{[%clk 0:00:27.7]} 40... d3 {[%clk 0:00:27.9]} 41. f6 {[%clk 0:00:27.4]} 41...
Rc4+ {[%clk 0:00:22.1]} 42. Kg5 {[%clk 0:00:27]} 42... Rxb4 {[%clk 0:00:21.8]}
43. fxg7 {[%clk 0:00:21.2]} 43... Rb8 {[%clk 0:00:16.2]} 44. Kh6 {[%clk
0:00:22]} 44... d2 {[%clk 0:00:16]} 45. Kh7 {[%clk 0:00:23.9]} 45... d1=Q {[%clk
0:00:16.8]} 46. g8=Q {[%clk 0:00:25.8]} 46... Qh5+ {[%clk 0:00:15.3]} 47. Kg7
{[%clk 0:00:26.7]} 47... Rxg8+ {[%clk 0:00:15.2]} 48. Kxg8 {[%clk 0:00:28.6]}
48... Qxg6+ {[%clk 0:00:16.8]} 49. Kf8 {[%clk 0:00:30]} 49... Qe6 {[%clk
0:00:17.8]} 50. Kg7 {[%clk 0:00:30.5]} 50... Qxe5+ {[%clk 0:00:19.3]} 51. Kf7
{[%clk 0:00:32.3]} 51... Qxc5 {[%clk 0:00:21.1]} 0-1

[Event "*** Titled Tuesday Blitz"]
[Site "Chess.com"]
[Date "2019.02.05"]
[Round "7"]
[White "GrandGlacier"]
[Black "kacprekt"]
[Result "1-0"]
[WhiteElo "2195"]
[BlackElo "2301"]
[TimeControl "180+2"]
[EndTime "14:40:33 PST"]
[Termination "GrandGlacier won by resignation"]

1. e4 {[%clk 0:03:01.9]} 1... c6 {[%clk 0:03:00.7]} 2. d4 {[%clk 0:03:02.3]}
2... d5 {[%clk 0:03:01.6]} 3. Nc3 {[%clk 0:03:03.8]} 3... dxe4 {[%clk
0:03:02.7]} 4. Nxe4 {[%clk 0:03:05.7]} 4... Bf5 {[%clk 0:03:04.1]} 5. Ng3 {[%clk
0:03:06.9]} 5... Bg6 {[%clk 0:03:05.3]} 6. h4 {[%clk 0:03:08.4]} 6... h6 {[%clk
0:03:05.7]} 7. Nf3 {[%clk 0:03:09.9]} 7... Nd7 {[%clk 0:03:06]} 8. h5 {[%clk
0:03:10.4]} 8... Bh7 {[%clk 0:03:06]} 9. Bd3 {[%clk 0:03:11.9]} 9... Bxd3 {[%clk
0:03:02.6]} 10. Qxd3 {[%clk 0:03:13.8]} 10... e6 {[%clk 0:03:03.4]} 11. Bf4
{[%clk 0:03:13.4]} 11... Qa5+ {[%clk 0:03:03.2]} 12. Bd2 {[%clk 0:03:14.2]}
12... Bb4 {[%clk 0:03:03.9]} 13. c3 {[%clk 0:03:15.4]} 13... Be7 {[%clk
0:03:05.1]} 14. a4 {[%clk 0:03:14.8]} 14... Ngf6 {[%clk 0:03:04.8]} 15. b4
{[%clk 0:03:15.2]} 15... Qc7 {[%clk 0:03:05.4]} 16. Ne4 {[%clk 0:03:14]} 16...
Nxe4 {[%clk 0:03:05.6]} 17. Qxe4 {[%clk 0:03:14.7]} 17... Nf6 {[%clk 0:03:06.8]}
18. Qe2 {[%clk 0:03:14.7]} 18... O-O {[%clk 0:03:08.2]} 19. a5 {[%clk 0:03:15]}
19... b6 {[%clk 0:03:05.9]} 20. Ne5 {[%clk 0:03:11.4]} 20... c5 {[%clk
0:03:04.6]} 21. dxc5 {[%clk 0:02:55.2]} 21... bxc5 {[%clk 0:03:02.2]} 22. O-O
{[%clk 0:02:54.5]} 22... Rfd8 {[%clk 0:02:52.7]} 23. Bf4 {[%clk 0:02:45.9]}
23... Nd5 {[%clk 0:02:44.7]} 24. Bg3 {[%clk 0:02:46.7]} 24... Bd6 {[%clk
0:02:40.2]} 25. Rfc1 {[%clk 0:02:30.5]} 25... Rac8 {[%clk 0:02:33.7]} 26. b5
{[%clk 0:02:29.7]} 26... c4 {[%clk 0:02:20.8]} 27. Kh2 {[%clk 0:02:12.8]} 27...
f6 {[%clk 0:02:12.5]} 28. Nc6 {[%clk 0:02:12.9]} 28... Bxg3+ {[%clk 0:02:10.4]}
29. fxg3 {[%clk 0:02:13.3]} 29... Re8 {[%clk 0:02:07.5]} 30. Nd4 {[%clk
0:02:11.8]} 30... Qc5 {[%clk 0:01:47.2]} 31. Qg4 {[%clk 0:01:44.5]} 31... e5
{[%clk 0:01:34.6]} 32. Nf5 {[%clk 0:01:42.1]} 32... Rc7 {[%clk 0:01:20.7]} 33.
Nxh6+ {[%clk 0:01:40.8]} 33... Kh8 {[%clk 0:01:18.1]} 34. Nf5 {[%clk 0:01:41.9]}
34... Ne3 {[%clk 0:01:00.2]} 35. Qg6 {[%clk 0:01:41.8]} 35... Rg8 {[%clk
0:00:46.2]} 36. Rab1 {[%clk 0:01:05.8]} 36... Nxf5 {[%clk 0:00:41.3]} 37. Qxf5
{[%clk 0:01:07.7]} 37... Rb8 {[%clk 0:00:40.9]} 38. h6 {[%clk 0:01:06.1]} 38...
Rxb5 {[%clk 0:00:30.4]} 39. hxg7+ {[%clk 0:01:02.9]} 39... Kxg7 {[%clk
0:00:25.9]} 40. Rf1 {[%clk 0:00:51.8]} 40... Rf7 {[%clk 0:00:10.8]} 41. Qg4+
{[%clk 0:00:52.7]} 41... Kf8 {[%clk 0:00:11.1]} 42. Qh5 {[%clk 0:00:49.7]} 42...
Kg8 {[%clk 0:00:04.5]} 43. Qg6+ {[%clk 0:00:46.1]} 43... Kf8 {[%clk 0:00:04.9]}
44. Rxf6 {[%clk 0:00:44.5]} 44... Rxf6 {[%clk 0:00:02.9]} 45. Qxf6+ {[%clk
0:00:46.4]} 45... Kg8 {[%clk 0:00:04.3]} 46. Qe6+ {[%clk 0:00:43.5]} 46... Kh8
{[%clk 0:00:03.7]} 47. Qe8+ {[%clk 0:00:44]} 1-0